[Event "IMSA Blitz Men 2019"]
[Site "Hengshui"]
[Date "2019.05.18"]
[Round "9.1"]
[White "Andreikin, Dmitry"]
[Black "Gelfand, Boris"]
[Result "1/2-1/2"]
[ECO "A06"]
[WhiteElo "2722"]
[BlackElo "2676"]
[Annotator "ChessBase"]
[PlyCount "85"]
[EventDate "2019.05.17"]
[EventType "blitz"]
[EventCountry "CHN"]
[SourceTitle "playchess.com"]
[Source "ChessBase"]
[SourceQuality "1"]
[TimeControl "180+2"]

1. Nf3 {[%emt 0:00:00]} d5 {[%emt 0:00:01]} 2. g3 {[%emt 0:00:00]} g6 {[%emt 0:00:01]} 3. Bg2 {[%emt 0:00:01]} Bg7 {[%emt 0:00:00]} 4. d4 {[%emt 0:00:01]} Nf6 {[%emt 0:00:02]} 5. O-O {[%emt 0:00:01]} O-O {[%emt 0:00:01]} 6. c3 {[%emt 0:00:01]} c6 {[%emt 0:00:07]} 7. Nbd2 {[%emt 0:00:02]} Nbd7 {[%emt 0:00:03]} 8. Re1 {[%emt 0:00:02]} c5 {[%emt 0:00:01]} 9. e4 {[%emt 0:00:07]} dxe4 {[%emt 0:00:04]} 10. Nxe4 {[%emt 0:00:02]} Nxe4 {[%emt 0:00:05]} 11. Rxe4 {[%emt 0:00:02]} cxd4 {[%emt 0:00:01]} 12. Nxd4 {[%emt 0:00:04]} Nc5 {[%emt 0:00:09]} 13. Re1 {[%emt 0:00:01]} e5 {[%emt 0:00:06]} 14. Nb3 {[%emt 0:00:09]} Nd3 {[%emt 0:00:06]} 15. Rf1 {[%emt 0:00:09]} Nxc1 {[%emt 0:00:06]} 16. Qxc1 {[%emt 0:00:07]} Rb8 {[%emt 0:00:38]} 17. Rd1 {[%emt 0:00:16]} Qc7 {[%emt 0:00:04]} 18. Qe3 {[%emt 0:00:02]} b6 {[%emt 0:00:01]} 19. Rd2 {[%emt 0:00:01]} Bg4 {[%emt 0:00:11]} 20. h3 {[%emt 0:00:15]} Be6 {[%emt 0:00:01]} 21. Rad1 {[%emt 0:00:04]} Rfd8 {[%emt 0:00:05]} 22. h4 {[%emt 0:00:01]} Bg4 {[%emt 0:00:08]} 23. Bf3 {[%emt 0:00:03]} Rxd2 {[%emt 0:00:14]} 24. Nxd2 {[%emt 0:00:08]} Be6 {[%emt 0:00:02]} 25. Ne4 {[%emt 0:00:21]} Rd8 {[%emt 0:00:08]} 26. a3 {[%emt 0:00:10]} h6 {[%emt 0:00:08]} 27. h5 {[%emt 0:00:08]} f5 {[%emt 0:00:09]} 28. Rxd8+ {[%emt 0:00:07]} Qxd8 {[%emt 0:00:00]} 29. Nd2 {[%emt 0:00:01]} g5 {[%emt 0:00:06]} 30. Be2 {[%emt 0:00:01]} Qc7 {[%emt 0:00:16]} 31. g4 {[%emt 0:00:08]} fxg4 {[%emt 0:00:03]} 32. Qe4 {[%emt 0:00:01]} Qd7 {[%emt 0:00:04]} 33. Bc4 {[%emt 0:00:05]} Bxc4 {[%emt 0:00:05]} 34. Nxc4 {[%emt 0:00:02]} g3 {[%emt 0:00:15]} 35. fxg3 {[%emt 0:00:21]} Qd1+ {[%emt 0:00:01]} 36. Kg2 {[%emt 0:00:02]} Qxh5 {[%emt 0:00:06]} 37. g4 {[%emt 0:00:08]} Qf7 {[%emt 0:00:05]} 38. Nd6 {[%emt 0:00:03]} Qd7 {[%emt 0:00:05]} 39. Qd5+ {[%emt 0:00:14]} Kh7 {[%emt 0:00:01]} 40. Qe4+ {[%emt 0:00:05]} Kg8 {[%emt 0:00:01]} 41. Qd5+ {[%emt 0:00:09]} Kh7 {[%emt 0:00:01]} 42. Qe4+ {[%emt 0:00:00]} Kg8 {[%emt 0:00:01]} 43. Qd5+ {[%emt 0:00:07]} 1/2-1/2

[Event "IMSA Blitz Men 2019"]
[Site "Hengshui"]
[Date "2019.05.18"]
[Round "9.1"]
[White "Vidit, Santosh Gujrathi"]
[Black "Jones, Gawain C B"]
[Result "1-0"]
[ECO "D78"]
[WhiteElo "2707"]
[BlackElo "2702"]
[Annotator "ChessBase"]
[PlyCount "131"]
[EventDate "2019.05.17"]
[EventType "blitz"]
[EventCountry "CHN"]
[SourceTitle "playchess.com"]
[Source "ChessBase"]
[SourceQuality "1"]
[TimeControl "180+2"]

1. d4 {[%emt 0:00:00]} Nf6 {[%emt 0:00:00]} 2. c4 {[%emt 0:00:00]} g6 {[%emt 0:00:00]} 3. g3 {[%emt 0:00:01]} c6 {[%emt 0:00:01]} 4. Bg2 {[%emt 0:00:01]} d5 {[%emt 0:00:01]} 5. Nf3 {[%emt 0:00:02]} Bg7 {[%emt 0:00:01]} 6. O-O {[%emt 0:00:02]} O-O {[%emt 0:00:02]} 7. Qb3 {[%emt 0:00:01]} Qb6 {[%emt 0:00:02]} 8. Nc3 {[%emt 0:00:02]} Rd8 {[%emt 0:00:02]} 9. Na4 {[%emt 0:00:04]} Qxb3 {[%emt 0:00:12]} 10. axb3 {[%emt 0:00:01]} Na6 {[%emt 0:00:02]} 11. Bf4 {[%emt 0:00:07]} Bf5 {[%emt 0:00:03]} 12. Rfc1 {[%emt 0:00:06]} Nh5 {[%emt 0:00:28]} 13. Bd2 {[%emt 0:00:14]} Nf6 {[%emt 0:00:03]} 14. e3 {[%emt 0:00:03]} Ne4 {[%emt 0:00:05]} 15. Be1 {[%emt 0:00:06]} Nd6 {[%emt 0:00:31]} 16. Bf1 {[%emt 0:00:10]} Ne4 {[%emt 0:00:21]} 17. cxd5 {[%emt 0:00:20]} cxd5 {[%emt 0:00:01]} 18. b4 {[%emt 0:00:05]} Rac8 {[%emt 0:00:38]} 19. b5 {[%emt 0:00:03]} Nb8 {[%emt 0:00:05]} 20. Rxc8 {[%emt 0:00:24]} Rxc8 {[%emt 0:00:02]} 21. Nc3 {[%emt 0:00:01]} Nxc3 {[%emt 0:00:10]} 22. Bxc3 {[%emt 0:00:02]} a6 {[%emt 0:00:07]} 23. bxa6 {[%emt 0:00:04]} Nxa6 {[%emt 0:00:01]} 24. Ne5 {[%emt 0:00:07]} Bxe5 {[%emt 0:00:06]} 25. dxe5 {[%emt 0:00:01]} Nc5 {[%emt 0:00:02]} 26. f3 {[%emt 0:00:07]} Bd3 {[%emt 0:00:05]} 27. Bxd3 {[%emt 0:00:10]} Nxd3 {[%emt 0:00:01]} 28. Rd1 {[%emt 0:00:02]} Nc5 {[%emt 0:00:03]} 29. Rxd5 {[%emt 0:00:02]} e6 {[%emt 0:00:14]} 30. Rd4 {[%emt 0:00:04]} h5 {[%emt 0:00:06]} 31. Rc4 {[%emt 0:00:02]} Rc6 {[%emt 0:00:08]} 32. Bd4 {[%emt 0:00:12]} Na6 {[%emt 0:00:06]} 33. Rxc6 {[%emt 0:00:02]} bxc6 {[%emt 0:00:01]} 34. Kf2 {[%emt 0:00:05]} Kf8 {[%emt 0:00:02]} 35. Ke2 {[%emt 0:00:02]} Ke7 {[%emt 0:00:02]} 36. Kd3 {[%emt 0:00:02]} c5 {[%emt 0:00:02]} 37. Bc3 {[%emt 0:00:02]} Kd7 {[%emt 0:00:00]} 38. Kc4 {[%emt 0:00:05]} Kc6 {[%emt 0:00:01]} 39. e4 {[%emt 0:00:10]} Nb8 {[%emt 0:00:04]} 40. f4 {[%emt 0:00:08]} Nd7 {[%emt 0:00:03]} 41. Ba5 {[%emt 0:00:01]} f6 {[%emt 0:00:03]} 42. exf6 {[%emt 0:00:03]} Nxf6 {[%emt 0:00:01]} 43. Kd3 {[%emt 0:00:06]} Kb5 {[%emt 0:00:02]} 44. Bc3 {[%emt 0:00:01]} Ng4 {[%emt 0:00:03]} 45. h3 {[%emt 0:00:15]} Nh6 {[%emt 0:00:01]} 46. Bg7 {[%emt 0:00:06]} Nf7 {[%emt 0:00:01]} 47. g4 {[%emt 0:00:01]} hxg4 {[%emt 0:00:01]} 48. hxg4 {[%emt 0:00:00]} Kc6 {[%emt 0:00:02]} 49. Bf8 {[%emt 0:00:05]} Kb5 {[%emt 0:00:01]} 50. g5 {[%emt 0:00:04]} Nd8 {[%emt 0:00:02]} 51. f5 {[%emt 0:00:06]} exf5 {[%emt 0:00:13]} 52. exf5 {[%emt 0:00:01]} Nf7 {[%emt 0:00:03]} 53. fxg6 {[%emt 0:00:01]} Ne5+ {[%emt 0:00:01]} 54. Ke4 {[%emt 0:00:02]} Nxg6 {[%emt 0:00:00]} 55. Bd6 {[%emt 0:00:04]} Kc4 {[%emt 0:00:05]} 56. Kf5 {[%emt 0:00:04]} Nh4+ {[%emt 0:00:00]} 57. Kf6 {[%emt 0:00:03]} Kb3 {[%emt 0:00:08]} 58. Bg3 {[%emt 0:00:01]} Nf3 {[%emt 0:00:02]} 59. g6 {[%emt 0:00:02]} Nd2 {[%emt 0:00:02]} 60. g7 {[%emt 0:00:04]} c4 {[%emt 0:00:00]} 61. g8=Q {[%emt 0:00:03]} Kxb2 {[%emt 0:00:01]} 62. Be5+ {[%emt 0:00:02]} Kb3 {[%emt 0:00:01]} 63. Qb8+ {[%emt 0:00:02]} Kc2 {[%emt 0:00:01]} 64. Qb4 {[%emt 0:00:02]} Kd3 {[%emt 0:00:02]} 65. Qc3+ {[%emt 0:00:02]} Ke2 {[%emt 0:00:01]} 66. Kf5 {[%emt 0:00:01]} 1-0

[Event "IMSA Blitz Men 2019"]
[Site "Hengshui"]
[Date "2019.05.18"]
[Round "9.1"]
[White "Fedoseev, Vladimir"]
[Black "Cheparinov, Ivan"]
[Result "1-0"]
[ECO "D38"]
[WhiteElo "2683"]
[BlackElo "2667"]
[Annotator "ChessBase"]
[PlyCount "67"]
[EventDate "2019.05.17"]
[EventType "blitz"]
[EventCountry "CHN"]
[SourceTitle "playchess.com"]
[Source "ChessBase"]
[SourceQuality "1"]
[TimeControl "180+2"]

1. d4 {[%emt 0:00:00]} Nf6 {[%emt 0:00:00]} 2. c4 {[%emt 0:00:00]} e6 {[%emt 0:00:00]} 3. Nf3 {[%emt 0:00:00]} d5 {[%emt 0:00:01]} 4. Nc3 {[%emt 0:00:00]} Bb4 {[%emt 0:00:02]} 5. e3 {[%emt 0:00:03]} O-O 6. Bd2 b6 {[%emt 0:00:07]} 7. cxd5 {[%emt 0:00:04]} exd5 {[%emt 0:00:01]} 8. Bd3 {[%emt 0:00:02]} Bb7 {[%emt 0:00:05]} 9. O-O {[%emt 0:00:02]} Be7 {[%emt 0:00:01]} 10. Ne5 {[%emt 0:00:05]} c5 {[%emt 0:00:01]} 11. Be1 {[%emt 0:00:02]} Nc6 {[%emt 0:00:06]} 12. f3 {[%emt 0:00:30]} cxd4 {[%emt 0:00:15]} 13. Nxc6 {[%emt 0:00:01]} Bxc6 {[%emt 0:00:02]} 14. exd4 {[%emt 0:00:01]} Bd6 {[%emt 0:00:22]} 15. Bh4 {[%emt 0:00:06]} h6 {[%emt 0:00:02]} 16. Rc1 {[%emt 0:00:30]} Bf4 {[%emt 0:00:15]} 17. Rc2 {[%emt 0:00:02]} Be3+ {[%emt 0:00:01]} 18. Kh1 {[%emt 0:00:01]} Bxd4 {[%emt 0:00:02]} 19. Ne2 {[%emt 0:00:06]} Bc5 {[%emt 0:00:08]} 20. b4 {[%emt 0:00:02]} Ba4 {[%emt 0:00:01]} 21. bxc5 {[%emt 0:00:02]} bxc5 {[%emt 0:00:01]} 22. Qd2 {[%emt 0:00:15]} Bxc2 {[%emt 0:00:03]} 23. Bxc2 {[%emt 0:00:02]} Qd6 {[%emt 0:00:16]} 24. Ng3 {[%emt 0:00:20]} Rfe8 {[%emt 0:00:09]} 25. Nf5 {[%emt 0:00:04]} Qe5 {[%emt 0:00:04]} 26. Re1 {[%emt 0:00:34]} Qb2 {[%emt 0:00:01]} 27. Nxh6+ {[%emt 0:00:14]} Kf8 {[%emt 0:00:01]} 28. Rb1 {[%emt 0:00:08]} Qd4 {[%emt 0:00:01]} 29. Qxd4 {[%emt 0:00:02]} cxd4 {[%emt 0:00:01]} 30. Nf5 {[%emt 0:00:13]} Re2 {[%emt 0:00:10]} 31. Bb3 {[%emt 0:00:14]} d3 {[%emt 0:00:04]} 32. Nd4 {[%emt 0:00:00]} Ree8 {[%emt 0:00:09]} 33. Rd1 {[%emt 0:00:02]} Nd7 {[%emt 0:00:20]} 34. Ba4 {[%emt 0:00:02]} 1-0

[Event "IMSA Blitz Men 2019"]
[Site "Hengshui"]
[Date "2019.05.18"]
[Round "9.1"]
[White "Ponomariov, Ruslan"]
[Black "Le, Quang Liem"]
[Result "1/2-1/2"]
[ECO "B33"]
[WhiteElo "2675"]
[BlackElo "2704"]
[Annotator "ChessBase"]
[PlyCount "76"]
[EventDate "2019.05.17"]
[EventType "blitz"]
[EventCountry "CHN"]
[SourceTitle "playchess.com"]
[Source "ChessBase"]
[SourceQuality "1"]
[TimeControl "180+2"]

1. e4 {[%emt 0:00:00]} c5 {[%emt 0:00:00]} 2. Nf3 {[%emt 0:00:00]} Nc6 {[%emt 0:00:00]} 3. d4 {[%emt 0:00:00]} cxd4 {[%emt 0:00:01]} 4. Nxd4 {[%emt 0:00:01]} Nf6 {[%emt 0:00:00]} 5. Nc3 {[%emt 0:00:01]} e5 {[%emt 0:00:01]} 6. Ndb5 {[%emt 0:00:00]} d6 {[%emt 0:00:01]} 7. Bg5 {[%emt 0:00:01]} a6 {[%emt 0:00:01]} 8. Na3 {[%emt 0:00:01]} b5 {[%emt 0:00:01]} 9. Bxf6 {[%emt 0:00:02]} gxf6 {[%emt 0:00:01]} 10. Nd5 {[%emt 0:00:01]} Bg7 {[%emt 0:00:01]} 11. c3 {[%emt 0:00:01]} f5 {[%emt 0:00:06]} 12. exf5 {[%emt 0:00:02]} Bxf5 {[%emt 0:00:02]} 13. Nc2 {[%emt 0:00:01]} O-O {[%emt 0:00:07]} 14. Nce3 {[%emt 0:00:02]} Be6 {[%emt 0:00:08]} 15. a4 {[%emt 0:00:03]} Ne7 {[%emt 0:00:30]} 16. Nxe7+ {[%emt 0:00:26]} Qxe7 {[%emt 0:00:01]} 17. axb5 {[%emt 0:00:31]} axb5 {[%emt 0:00:01]} 18. Rxa8 {[%emt 0:00:01]} Rxa8 {[%emt 0:00:01]} 19. Bxb5 Ra2 {[%emt 0:01:13]} 20. Qb1 {[%emt 0:01:02]} Bh6 {[%emt 0:00:23]} 21. O-O {[%emt 0:00:05]} Bxe3 {[%emt 0:00:02]} 22. fxe3 {[%emt 0:00:01]} Qa7 {[%emt 0:00:02]} 23. Re1 {[%emt 0:00:11]} d5 {[%emt 0:00:24]} 24. Kh1 {[%emt 0:00:13]} e4 {[%emt 0:00:02]} 25. Bf1 {[%emt 0:00:03]} Qa4 {[%emt 0:00:12]} 26. b4 {[%emt 0:00:07]} Qa3 {[%emt 0:00:03]} 27. b5 {[%emt 0:00:05]} Qxc3 {[%emt 0:00:03]} 28. Qxa2 {[%emt 0:00:21]} Qxe1 {[%emt 0:00:01]} 29. Qe2 {[%emt 0:00:01]} Qb1 {[%emt 0:00:02]} 30. Kg1 {[%emt 0:00:02]} Kf8 {[%emt 0:00:06]} 31. Kf2 {[%emt 0:00:02]} Bd7 {[%emt 0:00:03]} 32. h4 {[%emt 0:00:19]} Kg7 {[%emt 0:00:06]} 33. Qh5 {[%emt 0:00:06]} Bxb5 {[%emt 0:00:13]} 34. Qg5+ {[%emt 0:00:01]} Kf8 {[%emt 0:00:01]} 35. Qd8+ {[%emt 0:00:04]} Kg7 {[%emt 0:00:01]} 36. Qg5+ {[%emt 0:00:01]} Kf8 {[%emt 0:00:01]} 37. Qd8+ {[%emt 0:00:02]} Kg7 {[%emt 0:00:00]} 38. Qg5+ {[%emt 0:00:02]} Kf8 {[%emt 0:00:01]} 1/2-1/2

[Event "IMSA Blitz Men 2019"]
[Site "Hengshui"]
[Date "2019.05.18"]
[Round "9.1"]
[White "Leko, Peter"]
[Black "Korobov, Anton"]
[Result "0-1"]
[ECO "D12"]
[WhiteElo "2674"]
[BlackElo "2687"]
[Annotator "ChessBase"]
[PlyCount "69"]
[EventDate "2019.05.17"]
[EventType "blitz"]
[EventCountry "CHN"]
[SourceTitle "playchess.com"]
[Source "ChessBase"]
[SourceQuality "1"]
[TimeControl "180+2"]

1. d4 {[%emt 0:00:00]} d5 {[%emt 0:00:00]} 2. c4 {[%emt 0:00:00]} c6 {[%emt 0:00:00]} 3. Nf3 {[%emt 0:00:01]} Nf6 {[%emt 0:00:00]} 4. e3 {[%emt 0:00:02]} Bf5 {[%emt 0:00:01]} 5. Nc3 {[%emt 0:00:02]} e6 {[%emt 0:00:01]} 6. Nh4 {[%emt 0:00:03]} Be4 {[%emt 0:00:02]} 7. f3 {[%emt 0:00:03]} Bg6 {[%emt 0:00:01]} 8. Qb3 {[%emt 0:00:02]} Qc7 {[%emt 0:00:01]} 9. Bd2 {[%emt 0:00:23]} Be7 {[%emt 0:00:02]} 10. cxd5 {[%emt 0:00:08]} exd5 {[%emt 0:00:03]} 11. Nxg6 {[%emt 0:00:06]} hxg6 {[%emt 0:00:02]} 12. O-O-O {[%emt 0:00:03]} Nbd7 {[%emt 0:00:13]} 13. Kb1 {[%emt 0:00:01]} b5 {[%emt 0:00:11]} 14. Rc1 {[%emt 0:00:06]} Qd6 {[%emt 0:00:01]} 15. Nd1 {[%emt 0:00:26]} O-O {[%emt 0:00:21]} 16. g4 {[%emt 0:00:06]} Nb6 {[%emt 0:00:04]} 17. g5 {[%emt 0:00:08]} Nc4 {[%emt 0:00:05]} 18. Be1 {[%emt 0:00:08]} Nh5 {[%emt 0:00:08]} 19. f4 {[%emt 0:00:17]} a5 {[%emt 0:00:03]} 20. Qc2 {[%emt 0:00:24]} a4 {[%emt 0:00:01]} 21. Bxc4 {[%emt 0:00:10]} bxc4 {[%emt 0:00:06]} 22. a3 {[%emt 0:00:01]} Rfb8 {[%emt 0:00:09]} 23. Ka1 {[%emt 0:00:09]} Rb3 {[%emt 0:00:03]} 24. Nc3 {[%emt 0:00:17]} Rab8 {[%emt 0:00:21]} 25. Rb1 {[%emt 0:00:03]} c5 {[%emt 0:00:01]} 26. dxc5 {[%emt 0:00:04]} Qxc5 {[%emt 0:00:01]} 27. Bf2 {[%emt 0:00:08]} Qa5 {[%emt 0:00:07]} 28. Be1 {[%emt 0:00:07]} d4 {[%emt 0:00:14]} 29. exd4 {[%emt 0:00:04]} Nxf4 {[%emt 0:00:02]} 30. Bg3 {[%emt 0:00:02]} Bd6 {[%emt 0:00:45]} 31. Rhf1 {[%emt 0:00:05]} Qxg5 {[%emt 0:00:01]} 32. Ne4 {[%emt 0:00:02]} Qf5 {[%emt 0:00:01]} 33. Bxf4 {[%emt 0:00:13]} Bxf4 {[%emt 0:00:02]} 34. d5 {[%emt 0:00:03]} c3 {[%emt 0:00:04]} 35. bxc3 0-1

[Event "IMSA Blitz Men 2019"]
[Site "Hengshui"]
[Date "2019.05.18"]
[Round "9.2"]
[White "Le, Quang Liem"]
[Black "Ponomariov, Ruslan"]
[Result "0-1"]
[ECO "B12"]
[WhiteElo "2704"]
[BlackElo "2675"]
[Annotator "ChessBase"]
[PlyCount "57"]
[EventDate "2019.05.17"]
[EventType "blitz"]
[EventCountry "CHN"]
[SourceTitle "playchess.com"]
[Source "ChessBase"]
[SourceQuality "1"]
[TimeControl "180+2"]

1. e4 {[%emt 0:00:00]} c6 {[%emt 0:00:00]} 2. d4 {[%emt 0:00:00]} d5 {[%emt 0:00:00]} 3. e5 {[%emt 0:00:01]} c5 {[%emt 0:00:00]} 4. dxc5 {[%emt 0:00:01]} e6 {[%emt 0:00:01]} 5. a3 {[%emt 0:00:03]} Nc6 {[%emt 0:00:01]} 6. Nf3 {[%emt 0:00:05]} Bxc5 {[%emt 0:00:02]} 7. Bd3 {[%emt 0:00:02]} f6 {[%emt 0:00:03]} 8. b4 {[%emt 0:00:06]} Bb6 {[%emt 0:00:00]} 9. Bb2 {[%emt 0:00:06]} fxe5 {[%emt 0:00:02]} 10. Nxe5 {[%emt 0:00:04]} Nf6 {[%emt 0:00:02]} 11. O-O {[%emt 0:00:07]} O-O {[%emt 0:00:02]} 12. Nd2 {[%emt 0:00:01]} a5 {[%emt 0:00:02]} 13. b5 {[%emt 0:00:14]} Nxe5 {[%emt 0:00:02]} 14. Bxe5 {[%emt 0:00:01]} Bd7 {[%emt 0:00:03]} 15. a4 {[%emt 0:00:12]} Be8 {[%emt 0:00:01]} 16. Nb3 {[%emt 0:00:12]} Rc8 {[%emt 0:00:23]} 17. Qe2 {[%emt 0:00:10]} Qe7 {[%emt 0:00:05]} 18. Rae1 {[%emt 0:00:22]} Qb4 {[%emt 0:00:46]} 19. Kh1 {[%emt 0:00:24]} Bd7 {[%emt 0:00:14]} 20. f4 {[%emt 0:00:10]} Bc7 {[%emt 0:00:16]} 21. h3 {[%emt 0:00:15]} b6 {[%emt 0:00:21]} 22. Nd4 {[%emt 0:00:08]} Bxe5 {[%emt 0:00:09]} 23. Qxe5 {[%emt 0:00:02]} Rfe8 {[%emt 0:00:17]} 24. Nf3 {[%emt 0:00:37]} Qxa4 {[%emt 0:00:05]} 25. Qd6 {[%emt 0:00:08]} Qb4 {[%emt 0:00:11]} 26. Qxb6 {[%emt 0:00:05]} Rb8 {[%emt 0:00:01]} 27. Qa7 {[%emt 0:00:13]} Ra8 {[%emt 0:00:12]} 28. Qe3 {[%emt 0:00:03]} a4 {[%emt 0:00:02]} 29. Ra1 0-1

[Event "IMSA Blitz Men 2019"]
[Site "Hengshui"]
[Date "2019.05.18"]
[Round "9.2"]
[White "Jones, Gawain C B"]
[Black "Vidit, Santosh Gujrathi"]
[Result "1-0"]
[ECO "B30"]
[WhiteElo "2702"]
[BlackElo "2707"]
[Annotator "ChessBase"]
[PlyCount "57"]
[EventDate "2019.05.17"]
[EventType "blitz"]
[EventCountry "CHN"]
[SourceTitle "playchess.com"]
[Source "ChessBase"]
[SourceQuality "1"]
[TimeControl "180+2"]

1. e4 {[%emt 0:00:00]} c5 {[%emt 0:00:00]} 2. Nf3 {[%emt 0:00:06]} Nc6 {[%emt 0:00:00]} 3. Bb5 {[%emt 0:00:01]} e5 {[%emt 0:00:01]} 4. O-O {[%emt 0:00:07]} Bd6 {[%emt 0:00:02]} 5. c3 {[%emt 0:00:04]} a6 {[%emt 0:00:01]} 6. Ba4 {[%emt 0:00:17]} b5 {[%emt 0:00:01]} 7. Bc2 {[%emt 0:00:01]} Nge7 {[%emt 0:00:04]} 8. d4 {[%emt 0:00:01]} cxd4 {[%emt 0:00:03]} 9. cxd4 {[%emt 0:00:01]} exd4 {[%emt 0:00:03]} 10. Nxd4 {[%emt 0:00:03]} Nxd4 {[%emt 0:00:31]} 11. Qxd4 {[%emt 0:00:02]} Qc7 {[%emt 0:00:01]} 12. Qd3 {[%emt 0:00:24]} Bxh2+ {[%emt 0:00:05]} 13. Kh1 {[%emt 0:00:00]} Bf4 {[%emt 0:00:10]} 14. Nc3 {[%emt 0:00:04]} Bxc1 {[%emt 0:00:14]} 15. Raxc1 {[%emt 0:00:03]} Qe5 {[%emt 0:00:44]} 16. f4 {[%emt 0:00:23]} Qh5+ {[%emt 0:00:01]} 17. Kg1 {[%emt 0:00:00]} O-O {[%emt 0:00:10]} 18. Rf3 {[%emt 0:00:09]} Qc5+ {[%emt 0:00:24]} 19. Kh1 {[%emt 0:00:11]} Ng6 {[%emt 0:00:08]} 20. Qd2 {[%emt 0:00:39]} Bb7 {[%emt 0:00:15]} 21. Bb3 {[%emt 0:00:01]} Rac8 {[%emt 0:00:10]} 22. Re1 {[%emt 0:00:01]} d6 {[%emt 0:00:14]} 23. f5 {[%emt 0:00:05]} Ne5 {[%emt 0:00:03]} 24. Rg3 {[%emt 0:00:01]} Kh8 {[%emt 0:00:02]} 25. Qg5 {[%emt 0:00:06]} Rg8 {[%emt 0:00:03]} 26. Rh3 {[%emt 0:00:05]} Rge8 {[%emt 0:00:13]} 27. f6 {[%emt 0:00:13]} Ng6 {[%emt 0:00:01]} 28. fxg7+ {[%emt 0:00:04]} Kg8 {[%emt 0:00:03]} 29. Qh6 {[%emt 0:00:02]} 1-0

[Event "IMSA Blitz Men 2019"]
[Site "Hengshui"]
[Date "2019.05.18"]
[Round "9.2"]
[White "Gelfand, Boris"]
[Black "Andreikin, Dmitry"]
[Result "0-1"]
[ECO "E10"]
[WhiteElo "2676"]
[BlackElo "2722"]
[Annotator "ChessBase"]
[PlyCount "68"]
[EventDate "2019.05.17"]
[EventType "blitz"]
[EventCountry "CHN"]
[SourceTitle "playchess.com"]
[Source "ChessBase"]
[SourceQuality "1"]
[TimeControl "180+2"]

1. d4 {[%emt 0:00:00]} Nf6 {[%emt 0:00:00]} 2. c4 {[%emt 0:00:00]} e6 {[%emt 0:00:00]} 3. Nf3 {[%emt 0:00:01]} d5 {[%emt 0:00:00]} 4. g3 {[%emt 0:00:02]} Bb4+ {[%emt 0:00:02]} 5. Bd2 {[%emt 0:00:01]} Be7 {[%emt 0:00:01]} 6. Bg2 {[%emt 0:00:01]} O-O {[%emt 0:00:02]} 7. O-O {[%emt 0:00:02]} Nbd7 {[%emt 0:00:01]} 8. Qb3 {[%emt 0:00:02]} c6 {[%emt 0:00:04]} 9. Bf4 {[%emt 0:00:07]} Ne4 {[%emt 0:00:07]} 10. Nc3 {[%emt 0:00:04]} g5 {[%emt 0:00:06]} 11. Be3 {[%emt 0:00:02]} Nd6 {[%emt 0:00:03]} 12. cxd5 {[%emt 0:00:01]} exd5 {[%emt 0:00:01]} 13. Rad1 {[%emt 0:00:03]} f5 {[%emt 0:00:14]} 14. Ne5 {[%emt 0:00:11]} Nb6 {[%emt 0:00:09]} 15. Bc1 {[%emt 0:00:10]} f4 {[%emt 0:00:18]} 16. e4 {[%emt 0:00:17]} Kh8 {[%emt 0:00:41]} 17. exd5 {[%emt 0:00:38]} cxd5 {[%emt 0:00:01]} 18. Kh1 {[%emt 0:00:10]} Be6 {[%emt 0:00:27]} 19. gxf4 {[%emt 0:00:20]} gxf4 {[%emt 0:00:02]} 20. Rg1 {[%emt 0:00:00]} Bh4 {[%emt 0:00:16]} 21. Qc2 {[%emt 0:00:16]} Qf6 {[%emt 0:00:13]} 22. Qe2 {[%emt 0:00:32]} Rae8 {[%emt 0:00:23]} 23. Qh5 {[%emt 0:00:23]} Bxf2 {[%emt 0:00:01]} 24. Be4 {[%emt 0:00:06]} Nxe4 {[%emt 0:00:10]} 25. Nxe4 {[%emt 0:00:18]} dxe4 {[%emt 0:00:02]} 26. Ng6+ {[%emt 0:00:01]} Qxg6 {[%emt 0:00:02]} 27. Rxg6 {[%emt 0:00:01]} Bf7 {[%emt 0:00:01]} 28. Bxf4 {[%emt 0:00:01]} Bxg6 {[%emt 0:00:02]} 29. Be5+ {[%emt 0:00:01]} Kg8 {[%emt 0:00:03]} 30. Qe2 {[%emt 0:00:00]} e3 {[%emt 0:00:03]} 31. h4 {[%emt 0:00:01]} Nd5 {[%emt 0:00:07]} 32. h5 {[%emt 0:00:03]} Be4+ {[%emt 0:00:02]} 33. Kh2 {[%emt 0:00:01]} Bf3 {[%emt 0:00:03]} 34. Qc4 {[%emt 0:00:02]} Rf5 {[%emt 0:00:02]} 0-1

[Event "IMSA Blitz Men 2019"]
[Site "Hengshui"]
[Date "2019.05.18"]
[Round "9.2"]
[White "Cheparinov, Ivan"]
[Black "Fedoseev, Vladimir"]
[Result "0-1"]
[ECO "E71"]
[WhiteElo "2667"]
[BlackElo "2683"]
[Annotator "ChessBase"]
[PlyCount "64"]
[EventDate "2019.05.17"]
[EventType "blitz"]
[EventCountry "CHN"]
[SourceTitle "playchess.com"]
[Source "ChessBase"]
[SourceQuality "1"]
[TimeControl "180+2"]

1. d4 {[%emt 0:00:00]} Nf6 {[%emt 0:00:00]} 2. c4 {[%emt 0:00:00]} g6 {[%emt 0:00:00]} 3. Nc3 {[%emt 0:00:02]} Bg7 {[%emt 0:00:00]} 4. e4 {[%emt 0:00:01]} d6 {[%emt 0:00:01]} 5. h3 {[%emt 0:00:01]} O-O 6. Be3 Na6 {[%emt 0:00:03]} 7. g4 {[%emt 0:00:07]} c5 {[%emt 0:00:02]} 8. Nge2 {[%emt 0:00:06]} Be6 {[%emt 0:00:38]} 9. b3 {[%emt 0:00:32]} cxd4 {[%emt 0:00:31]} 10. Nxd4 {[%emt 0:00:01]} Bd7 {[%emt 0:00:37]} 11. Bg2 {[%emt 0:00:02]} Nc5 {[%emt 0:00:03]} 12. Qd2 {[%emt 0:00:12]} a6 {[%emt 0:00:01]} 13. O-O {[%emt 0:00:07]} Rb8 {[%emt 0:00:07]} 14. Rad1 {[%emt 0:00:19]} b5 {[%emt 0:00:08]} 15. cxb5 {[%emt 0:00:02]} axb5 {[%emt 0:00:00]} 16. e5 {[%emt 0:00:37]} dxe5 {[%emt 0:00:05]} 17. Nc6 {[%emt 0:00:01]} Bxc6 {[%emt 0:00:04]} 18. Qxd8 {[%emt 0:00:01]} Rfxd8 {[%emt 0:00:02]} 19. Bxc6 {[%emt 0:00:01]} Rdc8 {[%emt 0:00:05]} 20. Bxb5 {[%emt 0:00:17]} Nxb3 {[%emt 0:00:10]} 21. axb3 {[%emt 0:00:01]} Rxc3 {[%emt 0:00:02]} 22. Bc4 {[%emt 0:00:01]} h5 {[%emt 0:00:17]} 23. g5 {[%emt 0:00:07]} Ne4 {[%emt 0:00:02]} 24. Rd7 {[%emt 0:00:09]} Bf8 {[%emt 0:00:01]} 25. Ba7 {[%emt 0:00:08]} Rc8 {[%emt 0:00:09]} 26. f4 {[%emt 0:00:04]} Rxh3 {[%emt 0:00:09]} 27. fxe5 {[%emt 0:00:03]} Nxg5 {[%emt 0:00:02]} 28. Kg2 {[%emt 0:00:25]} Rc3 {[%emt 0:00:09]} 29. Bd4 {[%emt 0:00:05]} Rc2+ {[%emt 0:00:01]} 30. Kg3 {[%emt 0:00:03]} e6 {[%emt 0:00:08]} 31. Be3 {[%emt 0:00:01]} Rc3 {[%emt 0:00:02]} 32. Rd3 {[%emt 0:00:18]} R8xc4 {[%emt 0:00:02]} 0-1